[Event "Early-Titled-Tuesday-Blitz-September-26-2023"]
[Site "Chess.com"]
[Date "2023.09.26"]
[Round "4"]
[White "Arek_pacitan"]
[Black "Levanzovsky"]
[Result "1-0"]
[WhiteElo "2680"]
[BlackElo "2481"]
[TimeControl "180+1"]
[EndTime "8:39:48 PDT"]
[Termination "Arek_pacitan won on time"]

1. e4 {[%clk 0:03:00.9]} 1... c5 {[%clk 0:02:59.7]} 2. Nf3 {[%clk 0:02:59.6]}
2... d6 {[%clk 0:03:00.1]} 3. d4 {[%clk 0:02:59.6]} 3... cxd4 {[%clk 0:03:01]}
4. Nxd4 {[%clk 0:03:00.5]} 4... Nf6 {[%clk 0:03:01.7]} 5. Nc3 {[%clk 0:03:01.1]}
5... a6 {[%clk 0:03:02.1]} 6. Bg5 {[%clk 0:02:59.1]} 6... e6 {[%clk 0:03:01.8]}
7. f4 {[%clk 0:02:59.2]} 7... Be7 {[%clk 0:03:00.3]} 8. Qf3 {[%clk 0:02:59.7]}
8... Qc7 {[%clk 0:03:00.2]} 9. O-O-O {[%clk 0:03:00.1]} 9... Nbd7 {[%clk
0:02:58.8]} 10. g4 {[%clk 0:02:59.8]} 10... b5 {[%clk 0:02:57.7]} 11. Bxf6
{[%clk 0:03:00.4]} 11... Nxf6 {[%clk 0:02:57.1]} 12. g5 {[%clk 0:03:00.9]} 12...
Nd7 {[%clk 0:02:57.3]} 13. f5 {[%clk 0:03:01.2]} 13... O-O {[%clk 0:02:55.1]}
14. f6 {[%clk 0:02:57.4]} 14... gxf6 {[%clk 0:02:52]} 15. gxf6 {[%clk 0:02:58]}
15... Nxf6 {[%clk 0:02:50.8]} 16. e5 {[%clk 0:02:44.9]} 16... dxe5 {[%clk
0:02:42.3]} 17. Nc6 {[%clk 0:02:44.5]} 17... Bb7 {[%clk 0:02:19.4]} 18. Qg3+
{[%clk 0:02:39.7]} 18... Kh8 {[%clk 0:02:18]} 19. Nxe5 {[%clk 0:02:40]} 19...
Bd8 {[%clk 0:01:23.9]} 20. Rxd8 {[%clk 0:02:19.5]} 20... Rfxd8 {[%clk
0:00:11.7]} 21. Ng6+ {[%clk 0:01:53.1]} 21... fxg6 {[%clk 0:00:06.9]} 22. Qxc7
{[%clk 0:01:53.4]} 22... Bxh1 {[%clk 0:00:07.5]} 23. Qe5 {[%clk 0:01:41.7]}
23... Kg7 {[%clk 0:00:05.3]} 24. Bd3 {[%clk 0:01:41]} 24... Bd5 {[%clk
0:00:04.7]} 25. Ne2 {[%clk 0:01:33.6]} 25... Rf8 {[%clk 0:00:04.5]} 26. Nf4
{[%clk 0:01:32.7]} 26... Rae8 {[%clk 0:00:04.7]} 27. h4 {[%clk 0:01:32.1]} 27...
Kg8 {[%clk 0:00:03.7]} 28. h5 {[%clk 0:01:24.8]} 28... Ng4 {[%clk 0:00:02.7]}
29. Qg5 {[%clk 0:01:23.1]} 29... Nf2 {[%clk 0:00:01.6]} 30. Bxg6 {[%clk
0:01:00.1]} 30... hxg6 {[%clk 0:00:01.1]} 31. Qxg6+ {[%clk 0:00:55.8]} 31... Kh8
{[%clk 0:00:01.4]} 32. Qh6+ {[%clk 0:00:56]} 32... Kg8 {[%clk 0:00:01.7]} 33.
Ng6 {[%clk 0:00:53.5]} 33... Ne4 {[%clk 0:00:01.1]} 34. b3 {[%clk 0:00:27.8]}
34... Kf7 {[%clk 0:00:02]} 35. Qh7+ {[%clk 0:00:22.6]} 35... Kf6 {[%clk
0:00:02.5]} 36. Nxf8 {[%clk 0:00:22.6]} 36... Kg5 {[%clk 0:00:03.2]} 37. Qg6+
{[%clk 0:00:21.6]} 1-0

[Event "Early-Titled-Tuesday-Blitz-September-26-2023"]
[Site "Chess.com"]
[Date "2023.09.26"]
[Round "4"]
[White "CalinGheorghiu"]
[Black "Staudenhocker43"]
[Result "0-1"]
[WhiteElo "2356"]
[BlackElo "2575"]
[TimeControl "180+1"]
[EndTime "8:39:48 PDT"]
[Termination "Staudenhocker43 won on time"]

1. e4 {[%clk 0:03:00.9]} 1... c5 {[%clk 0:02:56.4]} 2. Nf3 {[%clk 0:03:00.5]}
2... d6 {[%clk 0:02:56.8]} 3. d4 {[%clk 0:02:59.9]} 3... cxd4 {[%clk 0:02:57.4]}
4. Qxd4 {[%clk 0:03:00.1]} 4... Nc6 {[%clk 0:02:56]} 5. Bb5 {[%clk 0:03:00.7]}
5... Bd7 {[%clk 0:02:56.1]} 6. Bxc6 {[%clk 0:03:00.1]} 6... Bxc6 {[%clk
0:02:57]} 7. Nc3 {[%clk 0:03:00.3]} 7... Nf6 {[%clk 0:02:56.5]} 8. Bg5 {[%clk
0:03:00.7]} 8... e6 {[%clk 0:02:56.6]} 9. O-O-O {[%clk 0:02:59.1]} 9... Be7
{[%clk 0:02:56.6]} 10. Kb1 {[%clk 0:02:59.1]} 10... O-O {[%clk 0:02:50.6]} 11.
Rhe1 {[%clk 0:02:52.1]} 11... Qa5 {[%clk 0:02:33.8]} 12. Qd2 {[%clk 0:02:35.3]}
12... Rfd8 {[%clk 0:02:07.9]} 13. Nd4 {[%clk 0:02:28.4]} 13... Qa6 {[%clk
0:01:52]} 14. Qe2 {[%clk 0:02:01.6]} 14... Be8 {[%clk 0:01:32.5]} 15. Qxa6
{[%clk 0:01:57.4]} 15... bxa6 {[%clk 0:01:31.9]} 16. f4 {[%clk 0:01:47.1]} 16...
h6 {[%clk 0:01:30.5]} 17. Bh4 {[%clk 0:01:43.7]} 17... g5 {[%clk 0:01:22.2]} 18.
fxg5 {[%clk 0:01:40.5]} 18... Nh7 {[%clk 0:01:19.7]} 19. Bg3 {[%clk 0:01:19]}
19... hxg5 {[%clk 0:01:17.7]} 20. Nb3 {[%clk 0:01:14.4]} 20... Nf6 {[%clk
0:01:08.5]} 21. e5 {[%clk 0:00:54.2]} 21... dxe5 {[%clk 0:01:07]} 22. Bxe5
{[%clk 0:00:54.3]} 22... Bc6 {[%clk 0:01:01.7]} 23. Nd4 {[%clk 0:00:49.2]} 23...
Bb7 {[%clk 0:00:50]} 24. h3 {[%clk 0:00:42.1]} 24... Rac8 {[%clk 0:00:38.7]} 25.
g3 {[%clk 0:00:24.9]} 25... Nd7 {[%clk 0:00:28]} 26. Nb3 {[%clk 0:00:07.4]}
26... Nxe5 {[%clk 0:00:27.5]} 27. Rxe5 {[%clk 0:00:04.5]} 27... Bf6 {[%clk
0:00:20.7]} 28. Ree1 {[%clk 0:00:02.7]} 28... Bxc3 {[%clk 0:00:19.7]} 29. bxc3
{[%clk 0:00:02.2]} 29... Rxd1+ {[%clk 0:00:13.8]} 30. Rxd1 {[%clk 0:00:02.6]}
30... Rxc3 {[%clk 0:00:14.1]} 31. Rd7 {[%clk 0:00:03.2]} 31... Bg2 {[%clk
0:00:12.7]} 32. Rxa7 {[%clk 0:00:02.7]} 32... Rxg3 {[%clk 0:00:12.7]} 33. Rxa6
{[%clk 0:00:02.7]} 33... Bxh3 {[%clk 0:00:12]} 34. c4 {[%clk 0:00:02.5]} 34...
g4 {[%clk 0:00:11.4]} 35. c5 {[%clk 0:00:02.7]} 35... Bf1 {[%clk 0:00:10.5]} 36.
Ra8+ {[%clk 0:00:02.2]} 36... Kg7 {[%clk 0:00:10.7]} 37. c6 {[%clk 0:00:02.4]}
37... Rc3 {[%clk 0:00:10.9]} 0-1

[Event "Early-Titled-Tuesday-Blitz-September-26-2023"]
[Site "Chess.com"]
[Date "2023.09.26"]
[Round "4"]
[White "only_strong_moves"]
[Black "ArtemDyachuk"]
[Result "0-1"]
[WhiteElo "2525"]
[BlackElo "2702"]
[TimeControl "180+1"]
[EndTime "8:39:50 PDT"]
[Termination "ArtemDyachuk won on time"]

1. e4 {[%clk 0:03:00.9]} 1... c5 {[%clk 0:02:59]} 2. Nf3 {[%clk 0:03:00.6]} 2...
d6 {[%clk 0:02:59.3]} 3. d4 {[%clk 0:03:00.7]} 3... cxd4 {[%clk 0:02:58.9]} 4.
Nxd4 {[%clk 0:03:01.6]} 4... Nf6 {[%clk 0:02:59.4]} 5. Nc3 {[%clk 0:03:02.3]}
5... Nc6 {[%clk 0:02:59]} 6. Bg5 {[%clk 0:02:56.4]} 6... Bd7 {[%clk 0:02:57.1]}
7. Nb3 {[%clk 0:02:52.1]} 7... e6 {[%clk 0:02:52.1]} 8. Be2 {[%clk 0:02:51.5]}
8... a6 {[%clk 0:02:43.4]} 9. a4 {[%clk 0:02:49.9]} 9... Rc8 {[%clk 0:02:41.3]}
10. O-O {[%clk 0:02:48.6]} 10... Be7 {[%clk 0:02:36.2]} 11. Kh1 {[%clk
0:02:39.5]} 11... Na5 {[%clk 0:02:18.2]} 12. Nxa5 {[%clk 0:02:31]} 12... Qxa5
{[%clk 0:02:19.1]} 13. Bd2 {[%clk 0:02:31.4]} 13... Qc7 {[%clk 0:02:14.9]} 14.
f4 {[%clk 0:02:18.9]} 14... O-O {[%clk 0:02:13.4]} 15. Bd3 {[%clk 0:02:18.6]}
15... Bc6 {[%clk 0:02:06.9]} 16. Qe2 {[%clk 0:02:09.8]} 16... Nd7 {[%clk
0:02:03.7]} 17. b4 {[%clk 0:02:03.1]} 17... Nf6 {[%clk 0:01:35.7]} 18. b5 {[%clk
0:01:58.5]} 18... axb5 {[%clk 0:01:32.1]} 19. Nxb5 {[%clk 0:01:57.9]} 19... Bxb5
{[%clk 0:01:16.2]} 20. axb5 {[%clk 0:01:58.8]} 20... Ra8 {[%clk 0:01:16.6]} 21.
Be3 {[%clk 0:01:49]} 21... Qc3 {[%clk 0:01:10.5]} 22. Qe1 {[%clk 0:01:36.1]}
22... Qc7 {[%clk 0:00:32.5]} 23. Bg1 {[%clk 0:00:59.8]} 23... d5 {[%clk
0:00:26.6]} 24. exd5 {[%clk 0:00:46.8]} 24... Rxa1 {[%clk 0:00:25.3]} 25. Qxa1
{[%clk 0:00:45.5]} 25... Nxd5 {[%clk 0:00:26.2]} 26. f5 {[%clk 0:00:36.3]} 26...
Bf6 {[%clk 0:00:21.3]} 27. Qa4 {[%clk 0:00:31.1]} 27... Nc3 {[%clk 0:00:19.2]}
28. Qg4 {[%clk 0:00:30.9]} 28... e5 {[%clk 0:00:18.4]} 29. Qb4 {[%clk
0:00:27.4]} 29... Re8 {[%clk 0:00:14.6]} 30. Bc5 {[%clk 0:00:18.1]} 30... e4
{[%clk 0:00:11.5]} 31. Bc4 {[%clk 0:00:14.4]} 31... Rc8 {[%clk 0:00:11.4]} 32.
Ra1 {[%clk 0:00:06.1]} 32... h5 {[%clk 0:00:09.9]} 33. Bxf7+ {[%clk 0:00:02.1]}
33... Qxf7 {[%clk 0:00:09.2]} 34. Ra7 {[%clk 0:00:01.6]} 34... e3 {[%clk
0:00:06]} 35. Bxe3 {[%clk 0:00:01.7]} 35... Nd5 {[%clk 0:00:06.2]} 36. Qe4
{[%clk 0:00:01.6]} 36... Re8 {[%clk 0:00:05.7]} 0-1

[Event "Early-Titled-Tuesday-Blitz-September-26-2023"]
[Site "Chess.com"]
[Date "2023.09.26"]
[Round "4"]
[White "CSB7"]
[Black "Oleksandr_Bortnyk"]
[Result "1-0"]
[WhiteElo "2727"]
[BlackElo "3023"]
[TimeControl "180+1"]
[EndTime "8:39:51 PDT"]
[Termination "CSB7 won on time"]

1. Nf3 {[%clk 0:03:00.9]} 1... Nf6 {[%clk 0:02:58]} 2. c4 {[%clk 0:02:58.2]}
2... b6 {[%clk 0:02:53.2]} 3. g3 {[%clk 0:02:55.7]} 3... Bb7 {[%clk 0:02:54.1]}
4. Bg2 {[%clk 0:02:56.1]} 4... g6 {[%clk 0:02:55]} 5. b3 {[%clk 0:02:56.1]} 5...
Bg7 {[%clk 0:02:55.9]} 6. Bb2 {[%clk 0:02:56.5]} 6... O-O {[%clk 0:02:54.4]} 7.
O-O {[%clk 0:02:56.6]} 7... e6 {[%clk 0:02:52.9]} 8. Nc3 {[%clk 0:02:53.5]} 8...
Na6 {[%clk 0:02:51.6]} 9. Re1 {[%clk 0:02:38.5]} 9... d5 {[%clk 0:02:50.1]} 10.
cxd5 {[%clk 0:02:32.7]} 10... exd5 {[%clk 0:02:51]} 11. d4 {[%clk 0:02:32.4]}
11... Ne4 {[%clk 0:02:34.1]} 12. e3 {[%clk 0:02:25.6]} 12... c5 {[%clk
0:02:31.7]} 13. Rc1 {[%clk 0:02:16.1]} 13... Re8 {[%clk 0:02:29.4]} 14. a3
{[%clk 0:01:45.4]} 14... Rc8 {[%clk 0:02:23.8]} 15. Nb5 {[%clk 0:01:42.4]} 15...
Qd7 {[%clk 0:02:20.1]} 16. a4 {[%clk 0:01:29.6]} 16... Bc6 {[%clk 0:02:18.5]}
17. Ne5 {[%clk 0:01:24.1]} 17... Qe7 {[%clk 0:01:52.5]} 18. Nxc6 {[%clk
0:01:21.2]} 18... Rxc6 {[%clk 0:01:53.4]} 19. Ba1 {[%clk 0:01:14.2]} 19... Nb4
{[%clk 0:01:33.8]} 20. Nc3 {[%clk 0:00:26.2]} 20... cxd4 {[%clk 0:01:09.4]} 21.
Nxd5 {[%clk 0:00:21.3]} 21... Qd6 {[%clk 0:00:39.3]} 22. Nxb4 {[%clk 0:00:21]}
22... Rxc1 {[%clk 0:00:39.2]} 23. Qxc1 {[%clk 0:00:21.8]} 23... Qxb4 {[%clk
0:00:33.2]} 24. Bxd4 {[%clk 0:00:21.9]} 24... Qxb3 {[%clk 0:00:15.3]} 25. Bxg7
{[%clk 0:00:18.3]} 25... Kxg7 {[%clk 0:00:16.2]} 26. a5 {[%clk 0:00:17]} 26...
Nc3 {[%clk 0:00:13.1]} 27. axb6 {[%clk 0:00:16.4]} 27... axb6 {[%clk 0:00:14]}
28. Qd2 {[%clk 0:00:13]} 28... Qc4 {[%clk 0:00:10.5]} 29. Bf1 {[%clk 0:00:10.4]}
29... Qc5 {[%clk 0:00:09.2]} 30. Ra1 {[%clk 0:00:06.5]} 30... b5 {[%clk
0:00:07.4]} 31. Qd7 {[%clk 0:00:05.9]} 31... Re7 {[%clk 0:00:06.8]} 32. Qd8
{[%clk 0:00:06.3]} 32... Rc7 {[%clk 0:00:02.5]} 33. Ra8 {[%clk 0:00:05.9]} 33...
b4 {[%clk 0:00:02.9]} 34. Qh8+ {[%clk 0:00:03.3]} 34... Kh6 {[%clk 0:00:03.4]}
35. Rg8 {[%clk 0:00:03.7]} 35... f5 {[%clk 0:00:02.7]} 36. Re8 {[%clk
0:00:02.4]} 36... Ne4 {[%clk 0:00:02]} 37. g4 {[%clk 0:00:02.6]} 1-0

[Event "Early-Titled-Tuesday-Blitz-September-26-2023"]
[Site "Chess.com"]
[Date "2023.09.26"]
[Round "4"]
[White "kuanysh1981"]
[Black "CheckThis4"]
[Result "1/2-1/2"]
[WhiteElo "2513"]
[BlackElo "2677"]
[TimeControl "180+1"]
[EndTime "8:39:51 PDT"]
[Termination "Game drawn - insufficient material"]

1. e4 {[%clk 0:03:00.1]} 1... d5 {[%clk 0:02:59.8]} 2. exd5 {[%clk 0:02:59.2]}
2... Nf6 {[%clk 0:03:00]} 3. Nf3 {[%clk 0:02:58]} 3... Bg4 {[%clk 0:02:59.3]} 4.
Be2 {[%clk 0:02:57.4]} 4... Qxd5 {[%clk 0:02:58]} 5. d4 {[%clk 0:02:56.5]} 5...
Nc6 {[%clk 0:02:44.5]} 6. h3 {[%clk 0:02:56.2]} 6... Bxf3 {[%clk 0:02:35.6]} 7.
Bxf3 {[%clk 0:02:55.9]} 7... Qd7 {[%clk 0:02:27.6]} 8. c3 {[%clk 0:02:55]} 8...
O-O-O {[%clk 0:02:25]} 9. O-O {[%clk 0:02:47.3]} 9... e5 {[%clk 0:02:24.1]} 10.
Qa4 {[%clk 0:02:45.7]} 10... exd4 {[%clk 0:02:21.5]} 11. cxd4 {[%clk 0:02:46.6]}
11... Nxd4 {[%clk 0:02:04.2]} 12. Qxa7 {[%clk 0:02:40.8]} 12... Nxf3+ {[%clk
0:02:04]} 13. gxf3 {[%clk 0:02:41.7]} 13... Qxh3 {[%clk 0:01:42.6]} 14. Qa8+
{[%clk 0:02:30.9]} 14... Kd7 {[%clk 0:01:42.2]} 15. Qa4+ {[%clk 0:02:31.8]}
15... Kc8 {[%clk 0:01:28.6]} 16. Qa8+ {[%clk 0:02:31.4]} 16... Kd7 {[%clk
0:01:26.6]} 17. Qa4+ {[%clk 0:02:15.5]} 17... c6 {[%clk 0:01:26.5]} 18. Rd1+
{[%clk 0:02:13]} 18... Bd6 {[%clk 0:01:26.2]} 19. Bf4 {[%clk 0:02:08.5]} 19...
Ke7 {[%clk 0:01:15.4]} 20. Rxd6 {[%clk 0:01:57.9]} 20... Rxd6 {[%clk 0:01:14.3]}
21. Bxd6+ {[%clk 0:01:58.8]} 21... Kxd6 {[%clk 0:01:13.8]} 22. Qf4+ {[%clk
0:01:48]} 22... Kd7 {[%clk 0:01:09.3]} 23. Nc3 {[%clk 0:01:48.9]} 23... Qe6
{[%clk 0:00:53.4]} 24. Rd1+ {[%clk 0:01:43.1]} 24... Nd5 {[%clk 0:00:52.8]} 25.
Nxd5 {[%clk 0:01:41.2]} 25... cxd5 {[%clk 0:00:53.7]} 26. Qa4+ {[%clk 0:01:41]}
26... Ke7 {[%clk 0:00:48]} 27. Qb4+ {[%clk 0:01:40.2]} 27... Kf6 {[%clk
0:00:45.4]} 28. Qxb7 {[%clk 0:01:28.5]} 28... Rd8 {[%clk 0:00:42.4]} 29. a4
{[%clk 0:01:25.4]} 29... d4 {[%clk 0:00:40.6]} 30. a5 {[%clk 0:01:20.6]} 30...
Rd5 {[%clk 0:00:37.3]} 31. Qb6 {[%clk 0:00:51.2]} 31... Qxb6 {[%clk 0:00:35.2]}
32. axb6 {[%clk 0:00:52.1]} 32... Rb5 {[%clk 0:00:35.4]} 33. Rxd4 {[%clk
0:00:51.5]} 33... Rxb6 {[%clk 0:00:28.3]} 34. b4 {[%clk 0:00:51]} 34... Ke5
{[%clk 0:00:27.1]} 35. Rc4 {[%clk 0:00:49.8]} 35... g5 {[%clk 0:00:24.9]} 36.
Kg2 {[%clk 0:00:49.6]} 36... h5 {[%clk 0:00:24.7]} 37. Kg3 {[%clk 0:00:48]}
37... f5 {[%clk 0:00:20.9]} 38. f4+ {[%clk 0:00:47.8]} 38... gxf4+ {[%clk
0:00:20.8]} 39. Rxf4 {[%clk 0:00:48.7]} 39... Rg6+ {[%clk 0:00:19]} 40. Kf3
{[%clk 0:00:48.7]} 40... Rc6 {[%clk 0:00:11.7]} 41. Rh4 {[%clk 0:00:48.5]} 41...
Rc3+ {[%clk 0:00:11.6]} 42. Kg2 {[%clk 0:00:48.5]} 42... Rb3 {[%clk 0:00:11.9]}
43. Rxh5 {[%clk 0:00:43.3]} 43... Rxb4 {[%clk 0:00:12.1]} 44. Rh3 {[%clk
0:00:43.5]} 44... Rg4+ {[%clk 0:00:11.3]} 45. Rg3 {[%clk 0:00:43.6]} 45... Kf4
{[%clk 0:00:11.4]} 46. Rxg4+ {[%clk 0:00:42.3]} 46... Kxg4 {[%clk 0:00:12.3]}
47. f4 {[%clk 0:00:37.6]} 47... Kxf4 {[%clk 0:00:12.2]} 48. Kf2 {[%clk
0:00:37.8]} 48... Ke4 {[%clk 0:00:13.1]} 49. Ke2 {[%clk 0:00:37.9]} 49... f4
{[%clk 0:00:14]} 50. Kf2 {[%clk 0:00:37.8]} 50... f3 {[%clk 0:00:14.9]} 51. Kf1
{[%clk 0:00:37.3]} 51... Kf4 {[%clk 0:00:15.8]} 52. Kf2 {[%clk 0:00:37.5]} 52...
Ke4 {[%clk 0:00:15.8]} 53. Kf1 {[%clk 0:00:36.3]} 53... Ke3 {[%clk 0:00:16.7]}
54. Ke1 {[%clk 0:00:36.5]} 54... f2+ {[%clk 0:00:17.6]} 55. Kf1 {[%clk
0:00:36.7]} 55... Kd2 {[%clk 0:00:18.2]} 56. Kxf2 {[%clk 0:00:36.6]} 1/2-1/2

[Event "Early-Titled-Tuesday-Blitz-September-26-2023"]
[Site "Chess.com"]
[Date "2023.09.26"]
[Round "4"]
[White "yonaltimur"]
[Black "Herman-NY"]
[Result "0-1"]
[WhiteElo "2279"]
[BlackElo "2487"]
[TimeControl "180+1"]
[EndTime "8:39:51 PDT"]
[Termination "Herman-NY won by checkmate"]

1. g3 {[%clk 0:03:00.9]} 1... h5 {[%clk 0:02:58.8]} 2. Bg2 {[%clk 0:03:01.8]}
2... h4 {[%clk 0:02:59.3]} 3. gxh4 {[%clk 0:02:59.9]} 3... Rxh4 {[%clk
0:02:58.7]} 4. Nf3 {[%clk 0:03:00.8]} 4... Rh8 {[%clk 0:02:59]} 5. d4 {[%clk
0:03:01.3]} 5... Nf6 {[%clk 0:02:55.8]} 6. c4 {[%clk 0:03:01.5]} 6... c5 {[%clk
0:02:49.8]} 7. d5 {[%clk 0:03:01.6]} 7... b5 {[%clk 0:02:48.9]} 8. Bg5 {[%clk
0:02:59.9]} 8... bxc4 {[%clk 0:02:40.7]} 9. Nc3 {[%clk 0:02:56.9]} 9... d6
{[%clk 0:02:38.2]} 10. e4 {[%clk 0:02:52.5]} 10... Nbd7 {[%clk 0:02:37.1]} 11.
Qa4 {[%clk 0:02:50.7]} 11... Rb8 {[%clk 0:02:29.9]} 12. Rb1 {[%clk 0:02:25.2]}
12... Rb4 {[%clk 0:02:23]} 13. Qxa7 {[%clk 0:02:09.8]} 13... g6 {[%clk
0:02:09.7]} 14. a3 {[%clk 0:02:05.1]} 14... Rb7 {[%clk 0:02:00.4]} 15. Qa4
{[%clk 0:02:04.6]} 15... Bg7 {[%clk 0:01:56.7]} 16. e5 {[%clk 0:02:02.9]} 16...
dxe5 {[%clk 0:01:56.8]} 17. Nxe5 {[%clk 0:02:02]} 17... Kf8 {[%clk 0:01:45.4]}
18. Nc6 {[%clk 0:02:00.8]} 18... Qc7 {[%clk 0:01:43.3]} 19. Qxc4 {[%clk
0:01:50.1]} 19... Nb6 {[%clk 0:01:27.7]} 20. Qxc5 {[%clk 0:01:48.5]} 20... Bf5
{[%clk 0:01:27.4]} 21. Rc1 {[%clk 0:01:40.9]} 21... Nc8 {[%clk 0:01:12.8]} 22.
b4 {[%clk 0:01:27.6]} 22... Nd6 {[%clk 0:00:57]} 23. Bf4 {[%clk 0:01:22.8]}
23... Nh5 {[%clk 0:00:54.7]} 24. Bxd6 {[%clk 0:01:07.6]} 24... exd6 {[%clk
0:00:53.1]} 25. Qc4 {[%clk 0:01:05.7]} 25... Qb6 {[%clk 0:00:31.9]} 26. a4
{[%clk 0:01:00.6]} 26... Kg8 {[%clk 0:00:09.5]} 27. a5 {[%clk 0:01:00.3]} 27...
Qc7 {[%clk 0:00:09.6]} 28. b5 {[%clk 0:01:00.3]} 28... Kh7 {[%clk 0:00:09]} 29.
b6 {[%clk 0:00:59.3]} 29... Re8+ {[%clk 0:00:09.3]} 30. Kf1 {[%clk 0:00:53.9]}
30... Qd7 {[%clk 0:00:08.5]} 31. h4 {[%clk 0:00:48.3]} 31... Bh6 {[%clk
0:00:06.1]} 32. Ra1 {[%clk 0:00:42.9]} 32... Nf4 {[%clk 0:00:06.4]} 33. Kg1
{[%clk 0:00:37.8]} 33... Bd3 {[%clk 0:00:04.9]} 34. Qd4 {[%clk 0:00:31.5]} 34...
Qg4 {[%clk 0:00:05.1]} 35. Rh2 {[%clk 0:00:20.6]} 35... Bg7 {[%clk 0:00:05.6]}
36. h5 {[%clk 0:00:14.7]} 36... Bxd4 {[%clk 0:00:04.2]} 37. hxg6+ {[%clk
0:00:15]} 37... Kxg6 {[%clk 0:00:05]} 38. a6 {[%clk 0:00:12.7]} 38... Bxc3
{[%clk 0:00:03.5]} 39. axb7 {[%clk 0:00:12.4]} 39... Bxa1 {[%clk 0:00:03.9]} 40.
b8=Q {[%clk 0:00:12.9]} 40... Rxb8 {[%clk 0:00:04.3]} 41. Nxb8 {[%clk
0:00:13.8]} 41... Bd4 {[%clk 0:00:04.7]} 42. Nd7 {[%clk 0:00:14.7]} 42... Qd1+
{[%clk 0:00:04.7]} 43. Bf1 {[%clk 0:00:13.5]} 43... Qxf1# {[%clk 0:00:05.6]} 0-1

[Event "Early-Titled-Tuesday-Blitz-September-26-2023"]
[Site "Chess.com"]
[Date "2023.09.26"]
[Round "4"]
[White "DuleMudule"]
[Black "vugarrasulov"]
[Result "0-1"]
[WhiteElo "2766"]
[BlackElo "2943"]
[TimeControl "180+1"]
[EndTime "8:39:56 PDT"]
[Termination "vugarrasulov won on time"]

1. d4 {[%clk 0:03:00.9]} 1... Nf6 {[%clk 0:03:00.6]} 2. Bg5 {[%clk 0:03:00.4]}
2... Ne4 {[%clk 0:02:59.5]} 3. h4 {[%clk 0:02:59.8]} 3... c5 {[%clk 0:02:58]} 4.
dxc5 {[%clk 0:02:59.5]} 4... Qa5+ {[%clk 0:02:55]} 5. Nd2 {[%clk 0:02:59.9]}
5... Nxd2 {[%clk 0:02:52.4]} 6. Qxd2 {[%clk 0:03:00]} 6... Qxc5 {[%clk 0:02:53]}
7. e4 {[%clk 0:02:58.3]} 7... d6 {[%clk 0:02:51.2]} 8. Nf3 {[%clk 0:02:57.3]}
8... h6 {[%clk 0:02:47.1]} 9. Be3 {[%clk 0:02:56.2]} 9... Qc7 {[%clk 0:02:47.8]}
10. c3 {[%clk 0:02:50.7]} 10... Nc6 {[%clk 0:02:48.2]} 11. Nd4 {[%clk
0:02:48.9]} 11... a6 {[%clk 0:02:43.9]} 12. Nxc6 {[%clk 0:02:41.9]} 12... bxc6
{[%clk 0:02:44.8]} 13. Bc4 {[%clk 0:02:26.4]} 13... e6 {[%clk 0:02:43.2]} 14. f4
{[%clk 0:02:20.9]} 14... Be7 {[%clk 0:02:36]} 15. g4 {[%clk 0:02:20.3]} 15... d5
{[%clk 0:02:35.8]} 16. Bd3 {[%clk 0:02:19.2]} 16... Bb7 {[%clk 0:02:24]} 17. Bd4
{[%clk 0:01:50]} 17... Bf6 {[%clk 0:02:12.3]} 18. e5 {[%clk 0:01:43.3]} 18...
Be7 {[%clk 0:02:12]} 19. b4 {[%clk 0:01:43.8]} 19... a5 {[%clk 0:02:06.5]} 20.
h5 {[%clk 0:01:30.7]} 20... axb4 {[%clk 0:01:57.9]} 21. cxb4 {[%clk 0:01:30.7]}
21... Ra3 {[%clk 0:01:57.8]} 22. Rh3 {[%clk 0:00:51.1]} 22... Ba6 {[%clk
0:01:47.6]} 23. Rb1 {[%clk 0:00:34.3]} 23... Bc4 {[%clk 0:01:39.5]} 24. Rb2
{[%clk 0:00:28.3]} 24... Qb7 {[%clk 0:01:28.6]} 25. Re3 {[%clk 0:00:26.1]} 25...
O-O {[%clk 0:01:10.7]} 26. Bh7+ {[%clk 0:00:23.6]} 26... Kxh7 {[%clk 0:01:10.1]}
27. Rxa3 {[%clk 0:00:24.1]} 27... Bh4+ {[%clk 0:00:57.2]} 28. Bf2 {[%clk
0:00:23.5]} 28... Bxf2+ {[%clk 0:00:53.2]} 29. Qxf2 {[%clk 0:00:24.4]} 29... f6
{[%clk 0:00:39.2]} 30. Qa7 {[%clk 0:00:15.1]} 30... Qc8 {[%clk 0:00:39]} 31. Rf2
{[%clk 0:00:14.1]} 31... Qd8 {[%clk 0:00:30.4]} 32. Qb7 {[%clk 0:00:12.4]} 32...
fxe5 {[%clk 0:00:29.9]} 33. Ra7 {[%clk 0:00:11.8]} 33... Rg8 {[%clk 0:00:27.9]}
34. Qe7 {[%clk 0:00:09.8]} 34... Qb6 {[%clk 0:00:25.2]} 35. Qc5 {[%clk
0:00:08.3]} 35... Qd8 {[%clk 0:00:25.2]} 36. Qe7 {[%clk 0:00:08.3]} 36... Qb6
{[%clk 0:00:20.5]} 37. Qc5 {[%clk 0:00:07.3]} 37... Qb8 {[%clk 0:00:21.2]} 38.
f5 {[%clk 0:00:06.9]} 38... e4 {[%clk 0:00:20.5]} 39. f6 {[%clk 0:00:03.8]}
39... Qg3 {[%clk 0:00:21]} 40. f7 {[%clk 0:00:02.7]} 40... Rf8 {[%clk 0:00:18]}
41. Qd4 {[%clk 0:00:01.9]} 41... e3 {[%clk 0:00:16.4]} 0-1